Cogmind - Beta 14 @@@ ROGUE MODE // 2024.11.10 @ 20:39:50 Player: TapeIsSticky Result: Heading to fleet! Performance ------------- Evolutions (9) 4500 Regions Visited (31) 6200 Robots Destroyed (142) 710 Value Destroyed (3702) 3702 Prototype IDs (81) 1620 Alien Tech Used (10) 2000 Bonus (33265) 33265 TOTAL SCORE: 51997 Bonus ------- Triggered Max Security 2000 High Alert Combat Kills 141 Follower Combat Kills 1620 Installed LC Capacitor 1000 Network Hubs Disabled 200 Aligned with FarCom 300 Met Data Miner 300 Met Warlord at Base 500 MAIN.C Attacked Warlord 500 Built Enhanced Grunts 300 Found Hidden Lab 3000 Used Core Reset Matrix 3000 Pursued by Intercept 1500 Destroyed MAIN.C Shell 5000 Destroyed MAIN.C 10000 Met Warlord at Command 2000 Win 3000 Friendly Fire -1096 Cogmind --------- Core Integrity 1600/1600 Matter 290/300 Energy 190/190 System Corruption 0% Temperature Hot (250) Movement Immobile (Siege) Ox1 Location To Fleet Rendezvous Parts ------- > --- POWER (2) -------- Light Quantum Reactor > --- PROPULSION (8) --- Heavy Siege Treads Improved Diametric Drive Improved Diametric Drive Improved Diametric Drive Cooled Impulse Thruster Impulse Thruster Array > --- UTILITY (12) ----- Advanced Cooling System Medium Storage Unit Centrium Light Armor Plating Centrium Light Armor Plating Medium Regenerative Plating Graphene Brace Advanced Hacking Suite System Mapper Deep Network Scanner Advanced System Shield Spacefold Activator > --- WEAPON (4) ------- L-Cannon > --- INVENTORY (10) --- High-powered Transdimensional Reconstructor Warp Cannon Sigix Terminator (1) Vibroblade Enhanced Force Lance Peak State ------------ > --- POWER ------------ Light Quantum Reactor > --- PROPULSION ------- Heavy Siege Treads Improved Diametric Drive Improved Diametric Drive Improved Diametric Drive Cooled Impulse Thruster Impulse Thruster Array > --- UTILITY ---------- Advanced Cooling System Medium Storage Unit Centrium Light Armor Plating Centrium Light Armor Plating Medium Regenerative Plating Graphene Brace Advanced Hacking Suite System Mapper Deep Network Scanner Advanced System Shield Spacefold Activator > --- WEAPON ----------- L-Cannon > --- INVENTORY -------- High-powered Transdimensional Reconstructor Warp Cannon Sigix Terminator Vibroblade Enhanced Force Lance [Rating: 221] Favorites ----------- Power Light Nuclear Core Engine Cooled Ion Engine Power Core Light Nuclear Core Reactor Light Antimatter Reactor Propulsion Light Treads Treads Light Treads Wheel Wheel Flight Unit Cooled Impulse Thruster Utility Hacking Suite Device Hardlight Generator Storage Medium Storage Unit Processor Enhanced Optical Array Hackware Hacking Suite Protection Light Armor Plating Artifact LC Capacitor Weapon Chainsword Energy Gun Small Laser Energy Cannon Light EM Pulse Cannon Ballistic Gun Heavy Assault Rifle Ballistic Cannon Bore Cannon Launcher Grenade Launcher Special Weapon Plasma Cutter Impact Weapon Shock Maul Slashing Weapon Chainsword Piercing Weapon Enhanced Force Lance Build | -11 -10 -10 -9 -9 -9 -8 -8 -7 -7 -7 -7 -6 -6 -6 -6 -6 -6 -5 -5 -5 -5 -4 -4 -4 -4 -3 -2 -2 -2 -1 -1 ------- Run | Yrd Mat Min Mat Min Exi Min Mat Fac Low Low Dat Pro Fac Ext Cet Arc Hub Fac Upp Upp War Pro Fac Arm Lab Res Res Qua Sec Acc Com Slots Evolved 18 | . . . 2 . . . 2 2 . . . . 2 . . . . 2 . . . . 2 . . 2 2 . . 2 . Power 1 | . . . . . . . . . . . . . . . . . . . . . . . . . . 1 . . . . . Propulsion 5 | . . . 1 . . . 1 . . . . . 1 . . . . 1 . . . . 1 . . . . . . . . Utility 10 | . . . 1 . . . 1 2 . . . . 1 . . . . 1 . . . . 1 . . 1 2 . . . . Weapon 2 | . . . . . . . . . . . . . . . . . . . . . . . . . . . . . . 2 . Parts Attached 263 | 7 8 5 49 4 . 5 40 12 3 2 . . 5 17 6 2 1 15 2 . 16 1 17 2 11 1 15 6 5 4 2 Power 30 | 1 1 1 5 . . . 3 1 . . . . 1 3 . . . 4 . . 2 1 . . . . 4 2 . 1 . Engine 13 | 1 1 1 5 . . . 1 . . . . . . 1 . . . 1 . . 2 . . . . . . . . . . Core 8 | . . . . . . . 2 1 . . . . 1 2 . . . 2 . . . . . . . . . . . . . Reactor 9 | . . . . . . . . . . . . . . . . . . 1 . . . 1 . . . . 4 2 . 1 . Propulsion 65 | 2 2 2 18 1 . . 10 . . . . . 2 7 . . . 3 . . 3 . 6 1 1 . 6 . . . 1 Treads 29 | 2 2 . 14 1 . . 9 . . . . . . . . . . . . . . . . . . . . . . . 1 Leg . | . . . . . . . . . . . . . . . . . . . . . . . . . . . . . . . . Wheel 6 | . . 2 4 . . . . . . . . . . . . . . . . . . . . . . . . . . . . Hover . | . . . . . . . . . . . . . . . . . . . . . . . . . . . . . . . . Flight 30 | . . . . . . . 1 . . . . . 2 7 . . . 3 . . 3 . 6 1 1 . 6 . . . . Utility 86 | 2 2 . 8 1 . . 9 6 . . . . 2 7 6 2 . 4 . . 5 . 10 . 6 1 5 4 4 2 . Device 35 | 1 1 . 2 . . . 3 4 . . . . . 2 2 . . . . . 3 . 8 . 3 1 1 2 2 . . Storage 5 | 1 1 . 1 . . . 1 . . . . . . . . . . 1 . . . . . . . . . . . . . Processor 3 | . . . . . . . 1 . . . . . . 1 . . . . . . 1 . . . . . . . . . . Hackware 11 | . . . . . . . 2 2 . . . . . . 2 2 . 1 . . 1 . . . 1 . . . . . . Protection 30 | . . . 5 1 . . 2 . . . . . 2 4 2 . . 2 . . . . 2 . 1 . 4 2 1 2 . Artifact 2 | . . . . . . . . . . . . . . . . . . . . . . . . . 1 . . . 1 . . Weapon 82 | 2 3 2 18 2 . 5 18 5 3 2 . . . . . . 1 4 2 . 6 . 1 1 4 . . . 1 1 1 Energy Gun 8 | 1 . . 3 . . . 2 . . . . . . . . . . . . . 2 . . . . . . . . . . Energy Cannon 6 | . 1 . . . . . . . . . . . . . . . . . 1 . 1 . . . 1 . . . . 1 1 Ballistic Gun 23 | 1 2 . 6 2 . 3 9 . . . . . . . . . . . . . . . . . . . . . . . . Ballistic Cannon 1 | . . 1 . . . . . . . . . . . . . . . . . . . . . . . . . . . . . Launcher 10 | . . . 1 . . 2 4 . . 1 . . . . . . . . . . 1 . . . 1 . . . . . . Special Weapon 5 | . . . 1 . . . 1 1 1 . . . . . . . 1 . . . . . . . . . . . . . . Impact Weapon 6 | . . 1 . . . . . 1 . . . . . . . . . 2 . . 1 . . . 1 . . . . . . Slashing Weapon 22 | . . . 7 . . . 2 3 2 1 . . . . . . . 2 1 . 1 . 1 1 1 . . . . . . Piercing Weapon 1 | . . . . . . . . . . . . . . . . . . . . . . . . . . . . . 1 . . Special Melee Weapon . | . . . . . . . . . . . . . . . . . . . . . . . . . . . . . . . . Unidentified Prototypes 31 | . . . 3 . . . 2 . 1 . . . 1 . 2 . . 2 . . 9 . 1 . 6 . 3 1 . . . Corrupted Parts 3 | . 1 . 2 . . . . . . . . . . . . . . . . . . . . . . . . . . . . System Corruption 20 | . 2 . 18 . . . . . . . . . . . . . . . . . . . . . . . . . . . . Parts Lost 26 | . 2 3 7 . . . 11 1 . . . . . . . . . . . . . 1 . . . . . . 1 . . Power 5 | . 1 1 1 . . . . . . . . . . . . . . . . . . 1 . . . . . . 1 . . Propulsion 5 | . . 1 . . . . 4 . . . . . . . . . . . . . . . . . . . . . . . . Utility 8 | . 1 . 2 . . . 4 1 . . . . . . . . . . . . . . . . . . . . . . . Weapon 8 | . . 1 4 . . . 3 . . . . . . . . . . . . . . . . . . . . . . . . Highest Loss Streak 3 | . 1 2 3 . . . 3 1 . . . . . . . . . . . . . 1 . . . . . . 1 . . To Critical Strikes . | . . . . . . . . . . . . . . . . . . . . . . . . . . . . . . . . Average Slot Usage (%) 86 | . 91 74 96 100 77 100 87 64 76 76 76 76 80 77 86 90 93 95 94 94 93 93 93 93 93 77 70 74 75 74 75 Engine 4 | . 6 4 10 11 11 11 4 . . . . . . 3 . . . . . . 4 4 . . . . . . . . . Core 2 | . . . . . . . 4 7 7 7 7 7 6 2 6 6 6 5 5 5 . . . . . . . . . . . Treads 13 | . 28 2 22 33 33 33 35 . . . . . . . . . . . . . . . . . . . . . . . . Wheel 2 | . . 17 10 . . . . . . . . . . . . . . . . . . . . . . . . . . . . Flight 11 | . . . . . . . . 7 7 7 7 7 13 20 33 33 33 34 29 29 29 29 30 30 33 31 27 25 25 23 22 Device 8 | . 13 14 8 11 11 11 6 16 7 7 7 7 6 4 6 6 6 . . . 4 5 9 10 9 4 5 7 6 7 7 Storage 8 | . 14 14 11 11 11 11 9 7 7 7 7 7 6 6 6 6 6 5 5 5 5 5 5 5 5 4 4 4 4 3 3 Hackware 12 | . . . . . . . . 17 30 30 30 30 26 26 26 30 33 35 35 35 29 29 26 26 25 18 16 16 16 15 15 Protection 5 | . . . 11 11 11 11 11 . . . . . 6 . . . . 4 5 5 5 5 4 5 5 4 4 7 8 8 11 Energy Gun 1 | . 6 . 6 . . . . . . . . . . . . . . . . . . . . . . . . . . . . Ballistic Gun 5 | . 15 1 10 22 . 21 11 . . . . . . . . . . . . . . . . . . . . . . . . Impact Weapon 1 | . . 12 . . . . . . . . . . . . . . . 1 5 5 5 5 5 5 4 . . . . . . Slashing Weapon 4 | . . . 1 . . . 2 7 15 14 15 15 13 10 6 6 6 5 5 5 4 5 5 5 4 4 4 4 4 3 2 Peak Build Rating 221 | 7 10 16 22 22 20 23 52 61 71 61 61 61 71 79 57 55 57 86 88 83 117 113 127 125 159 164 194 203 207 194 221 Average Rating 56 | 5 8 9 17 21 18 22 24 55 60 60 61 61 68 63 45 53 55 70 83 83 108 111 118 124 132 164 173 196 192 185 192 On Entrance 79 | . 7 10 16 21 21 19 23 49 61 61 61 61 61 71 48 50 55 55 83 83 83 112 113 122 125 157 164 194 197 171 191 Naked Turns . | . . . . . . . . . . . . . . . . . . . . . . . . . . . . . . . . Heaviest Build 109 | 13 29 36 104 106 100 106 109 22 22 26 22 22 26 40 20 20 21 28 28 28 47 36 39 40 53 50 58 58 58 59 59 Greatest Support 80 | 40 40 22 60 60 60 60 80 50 50 50 50 50 56 56 22 22 22 32 32 37 37 37 56 56 54 54 63 63 60 60 60 Greatest Overweight (x) 12 | . . 2 10 1 1 1 1 . . . . . . 5 . . . . . . 1 . 12 . 1 1 . . . . . Average Overweight (x) . | . . 1 7 1 1 1 . . . . . . . . . . . . . . . . . . . . . . . . . Largest Inventory Capacity 25 | 8 15 15 25 25 25 25 25 10 10 10 10 10 10 10 10 10 10 10 10 10 10 10 10 10 10 10 10 10 10 10 10 Average Capacity 16 | 7 14 15 24 25 25 25 24 10 10 10 10 10 10 10 10 10 10 10 10 10 10 10 10 10 10 10 10 10 10 10 10 Most Carried 25 | 7 15 15 25 25 25 24 25 10 10 10 10 10 10 10 10 10 10 10 10 10 10 10 10 10 10 8 10 10 10 10 10 Average Carried 15 | 4 12 14 22 25 24 23 22 9 10 9 10 10 9 8 9 10 9 9 9 10 9 9 9 10 9 7 8 9 9 9 9 Final Capacity 25 | 8 15 15 25 25 25 25 10 10 10 10 10 10 10 10 10 10 10 10 10 10 10 10 10 10 10 10 10 10 10 10 10 Final Carried 25 | 7 15 15 25 25 25 23 9 10 10 10 10 10 10 10 10 10 10 10 10 10 10 9 10 10 8 8 8 9 10 10 6 Class Distribution -------------------- 29% | Scavenger-Mutant 26% | Wizard-Sprinter 20% | Mutant 13% | Hacker-Mutant 5% | Hacker-Sprinter Dominant Class ---------------- Mutant | -10/Materials Mutant | -10/Mines Scavenger-Mutant | -9/Materials Scavenger-Mutant | -9/Mines Mutant | -9/Exiles Scavenger-Mutant | -8/Mines Scavenger-Mutant | -8/Materials Infiltrator-Mutant | -7/Factory Hacker-Mutant | -7/Lower Caves Hacker-Mutant | -7/Lower Caves Hacker-Mutant | -7/Data Miner Hacker-Mutant | -6/Proximity Caves Hacker-Mutant | -6/Factory Hacker-Mutant | -6/Extension Hacker-Sprinter | -6/Cetus Wizard-Sprinter | -6/Archives Wizard-Sprinter | -6/Hub_04(d) Wizard-Sprinter | -5/Factory Wizard-Sprinter | -5/Upper Caves Wizard-Sprinter | -5/Upper Caves Wizard-Sprinter | -5/Warlord Wizard-Sprinter | -4/Proximity Caves Wizard-Sprinter | -4/Factory Wizard-Sprinter | -4/Armory Wizard-Sprinter | -4/Lab Wizard-Sprinter | -3/Research Wizard-Sprinter | -2/Research Wizard-Sprinter | -2/Quarantine Wizard-Sprinter | -2/Section 7 Wizard-Sprinter | -1/Access Wizard-Sprinter | -1/Command Resources | -11 -10 -10 -9 -9 -9 -8 -8 -7 -7 -7 -7 -6 -6 -6 -6 -6 -6 -5 -5 -5 -5 -4 -4 -4 -4 -3 -2 -2 -2 -1 -1 ----------- Run | Yrd Mat Min Mat Min Exi Min Mat Fac Low Low Dat Pro Fac Ext Cet Arc Hub Fac Upp Upp War Pro Fac Arm Lab Res Res Qua Sec Acc Com Matter Collected 3993 | 277 356 98 859 83 . 79 780 249 30 82 . . 50 130 100 20 . 60 91 . 189 . 90 79 . . 191 20 28 52 . Remotely . | . . . . . . . . . . . . . . . . . . . . . . . . . . . . . . . . Salvage Created 5269 | 101 625 89 1322 50 . 17 1146 299 . 60 . . 163 155 73 301 26 120 53 . . 11 251 . . . 203 . 28 176 . Parts 315 | 9 37 4 90 3 . 8 70 21 . 2 . . 5 8 6 24 5 6 2 . . . 8 . . . 4 . 2 1 . Haulers Intercepted 17 | . 2 . 5 . . . 1 2 . . . . 1 1 . . . 1 . . . . 2 . . . 2 . . . . Recyclers Shooed 4 | 1 1 . 1 . . . 1 . . . . . . . . . . . . . . . . . . . . . . . . Parts Field Recycled . | . . . . . . . . . . . . . . . . . . . . . . . . . . . . . . . . Retrieved Matter . | . . . . . . . . . . . . . . . . . . . . . . . . . . . . . . . . Parts Self-Destructed 5 | . . . . . . . . . . 3 . . . . . . . . 2 . . . . . . . . . . . . Prevented . | . . . . . . . . . . . . . . . . . . . . . . . . . . . . . . . . Kills | -11 -10 -10 -9 -9 -9 -8 -8 -7 -7 -7 -7 -6 -6 -6 -6 -6 -6 -5 -5 -5 -5 -4 -4 -4 -4 -3 -2 -2 -2 -1 -1 ------- Run | Yrd Mat Min Mat Min Exi Min Mat Fac Low Low Dat Pro Fac Ext Cet Arc Hub Fac Upp Upp War Pro Fac Arm Lab Res Res Qua Sec Acc Com Combat Hostiles Destroyed 81 | . 15 1 23 1 . 3 26 3 . 3 . . . 1 . . . . 2 . . 1 . . . . . . . 2 . Melee 19 | . . . 6 . . . 6 3 . 1 . . . 1 . . . . 1 . . 1 . . . . . . . . . Guns 31 | . 11 . 10 1 . . 9 . . . . . . . . . . . . . . . . . . . . . . . . Cannons 6 | . 2 1 2 . . . . . . . . . . . . . . . 1 . . . . . . . . . . . . AOE 22 | . 2 . 4 . . 3 11 . . 2 . . . . . . . . . . . . . . . . . . . . . Classes Destroyed 17 | 2 6 1 4 . . . 2 1 . . . . . . . . . . . . . 1 . . . . . . . . . Worker 4 | . . . 1 . . . 1 1 . . . . . . . . . . . . . . . . . . . . 1 . . Builder 9 | . 1 . 3 . . . . 1 . . . . . . . . . 1 . . . . 3 . . . . . . . . Tunneler 4 | 2 1 . . . . 1 . . . . . . . . . . . . . . . . . . . . . . . . . Hauler 17 | . 2 . 5 . . . 1 2 . . . . 1 1 . . . 1 . . . . 2 . . . 2 . . . . Recycler 4 | 1 . 1 1 . . . 1 . . . . . . . . . . . . . . . . . . . . . . . . Mechanic 1 | . . . 1 . . . . . . . . . . . . . . . . . . . . . . . . . . . . Operator 15 | . 2 . 1 . . . 1 1 . . . . 2 . . 8 . . . . . . . . . . . . . . . Drone 1 | . . . . . . . . . . . . . . . . . . . . . . 1 . . . . . . . . . Watcher 7 | . 2 . 1 . . . 2 1 . . . . . . . . 1 . . . . . . . . . . . . . . Swarmer 26 | . 6 . 8 . . 3 4 2 . 1 . . . . . . . . 2 . . . . . . . . . . . . Grunt 35 | . 9 . 6 1 . . 17 . . 2 . . . . . . . . . . . . . . . . . . . . . Brawler 1 | . . . 1 . . . . . . . . . . . . . . . . . . . . . . . . . . . . Duelist 1 | . . . . . . . 1 . . . . . . . . . . . . . . . . . . . . . . . . Sentry 14 | . . . 8 . . . 3 . . . . . . 1 . . . . . . . . . . . . . . . 2 . Hunter 1 | . . . . . . . 1 . . . . . . . . . . . . . . . . . . . . . . . . Programmer 1 | . . . . . . . . 1 . . . . . . . . . . . . . . . . . . . . . . . Assembled 1 | . . 1 . . . . . . . . . . . . . . . . . . . . . . . . . . . . . Best Kill Streak 8 | 2 4 2 6 1 . 3 8 2 . 2 . . 1 1 . 7 1 1 2 . . 1 3 . . . 2 . 1 1 . Combat Bots Only 8 | . 3 1 5 1 . 3 8 2 . 2 . . . 1 . . . . 2 . . 1 . . . . . . . 1 . Max Kills in Single Turn 4 | 1 2 2 4 1 . 3 3 1 . 1 . . 1 1 1 1 1 1 1 . . 1 1 . . . 1 . 1 1 . Gunslinging . | . . . . . . . . . . . . . . . . . . . . . . . . . . . . . . . . Exploded 3 | . 2 . 3 . . 3 3 . . 1 . . . . . . . . . . . . . . . . . . . . . Melee 1 | . . . 1 . . . 1 1 . 1 . . . 1 . . . . 1 . . 1 . . . . . . . . . Uniques/NPCs Destroyed 1 | . . . . . . . . . . . . . . . 1 . . . . . . . . . . . . . . . . A7 (-6/Cetus) Combat | -11 -10 -10 -9 -9 -9 -8 -8 -7 -7 -7 -7 -6 -6 -6 -6 -6 -6 -5 -5 -5 -5 -4 -4 -4 -4 -3 -2 -2 -2 -1 -1 -------- Run | Yrd Mat Min Mat Min Exi Min Mat Fac Low Low Dat Pro Fac Ext Cet Arc Hub Fac Upp Upp War Pro Fac Arm Lab Res Res Qua Sec Acc Com Hostile Shots Fired 762 | . 63 29 183 2 . 6 187 26 22 2 . 18 . 56 2 . 2 2 11 9 4 24 2 18 . 7 2 38 47 . . Missed 281 | . 16 8 51 . . 4 58 8 14 1 . 9 . 33 . . . . 6 3 2 9 1 8 . 2 1 24 23 . . Damage Taken 7818 | . 542 523 1596 37 . 23 1769 276 90 23 . 131 . 214 54 21 40 30 94 115 52 313 27 180 . 127 20 355 1166 . . Core 1660 | . 70 141 146 9 . . 193 46 18 . . 12 . 17 25 . 20 17 23 . . 76 . 52 . . . 26 769 . . Absorbed by Shields 566 | . . . 68 12 . 8 462 . . . . . . . . . . . . . . . . 16 . . . . . . . Redirected to Shielding 26 | . . . . . . . 23 . . . . . . 3 . . . . . . . . . . . . . . . . . Regen/Repaired (Parts) 520 | . . . . . . . . 28 . . . . . . 1 . . 1 . . 59 . 83 67 28 . 36 3 67 69 78 Core Remaining (%) 75 | 100 . 15 . . . 61 64 . . . . 89 . . . . 92 . . . . 88 . . 88 100 . . 38 . 100 Volleys Fired 293 | 7 80 7 97 1 . 2 53 . . 4 . . . . . . . . 3 . 10 . . . 2 . . . . 17 10 Largest 2 | 2 2 2 2 2 . 1 2 . . 1 . . . . . . . . 1 . 1 . . . 1 . . . . 1 1 Hottest 900 | 60 76 76 97 46 . 30 58 . . 39 . . . . . . . . 120 . 100 . . . 20 . . . . 100 900 Shots Fired 466 | 14 147 9 153 4 . 4 89 . . 4 . . . . . . . . 3 . 10 . . . 2 . . . . 17 10 Gun 364 | 14 128 2 136 4 . 2 75 . . . . . . . . . . . . . 3 . . . . . . . . . . Cannon 75 | . 19 7 12 . . . . . . . . . . . . . . . 3 . 7 . . . . . . . . 17 10 Launcher 26 | . . . 5 . . 2 13 . . 4 . . . . . . . . . . . . . . 2 . . . . . . Special 1 | . . . . . . . 1 . . . . . . . . . . . . . . . . . . . . . . . . Kinetic 273 | 7 92 7 86 4 . 2 75 . . . . . . . . . . . . . . . . . . . . . . . . Thermal 83 | 7 36 . 9 . . . 1 . . . . . . . . . . . 3 . . . . . . . . . . 17 10 Explosive 24 | . . . 5 . . 2 13 . . 4 . . . . . . . . . . . . . . . . . . . . . Electromagnetic 74 | . 19 2 53 . . . . . . . . . . . . . . . . . . . . . . . . . . . . Entropic 12 | . . . . . . . . . . . . . . . . . . . . . 10 . . . 2 . . . . . . Robot Hit Streak 10 | 5 10 3 10 2 . . 9 . . 1 . . . . . . . . 1 . . . . . . . . . . . . Robot Miss Streak 5 | 1 4 3 5 2 . . 4 . . 1 . . . . . . . . 1 . . . . . . . . . . . . Penetration Max 5 | . . 1 . . . . 1 . . . . . . . . . . . . . . . . . . . . . . . 5 Secondary Targets . | . . . . . . . . . . . . . . . . . . . . . . . . . . . . . . . . Shots Hit Robots 374 | 9 88 6 112 2 . . 75 17 . 4 . . 10 8 6 16 2 5 2 . . 1 5 . . . 5 . 1 . . Core Hits 214 | 4 44 2 56 3 . 3 62 7 . 8 . . 3 3 3 6 1 2 2 . . . 2 . . . 2 . 1 . . Critical Kills 5 | . . 1 2 . . . . . . . . . . . . . . . . . . . . . . . . . . 2 . Critical Parts Destroyed 3 | . . . 2 . . . . . . . . . . . . . . . . . . . 1 . . . . . . . . Critical Strikes 21 | . . 1 7 . . . 2 1 . . . . 3 1 1 1 . . . . . . 1 . . . 1 . . 2 . Meltdown 2 | . . . . . . . . . . . . . . . . . . . . . . . . . . . . . . 2 . Destroy 5 | . . 1 4 . . . . . . . . . . . . . . . . . . . . . . . . . . . . Corrupt 2 | . . . 2 . . . . . . . . . . . . . . . . . . . . . . . . . . . . Smash 1 | . . . . . . . . . . . . . . . . . . . . . . . 1 . . . . . . . . Sever 11 | . . . 1 . . . 2 1 . . . . 3 1 1 1 . . . . . . . . . . 1 . . . . Melee Attacks 336 | . . 4 23 . . . 21 40 1 3 . 1 21 12 6 21 13 14 14 2 15 3 23 31 12 3 23 10 9 7 4 Impact 46 | . . 4 . . . . . . . . . . . . . . . 3 9 2 10 2 10 5 1 . . . . . . Slashing 290 | . . . 23 . . . 21 40 1 3 . 1 21 12 6 21 13 11 5 . 5 1 13 26 11 3 23 10 9 7 4 Piercing . | . . . . . . . . . . . . . . . . . . . . . . . . . . . . . . . . Sneak Attacks 42 | . . . 2 . . . 2 5 . 2 . . 3 2 3 9 2 3 . . . 1 5 . . . 2 . 1 . . Combat Hostiles 3 | . . . . . . . . 1 . . . . . 1 . . . . . . . 1 . . . . . . . . . Follow-up Attacks 4 | . . . . . . . . . . . . . 2 1 . . . . 1 . . . . . . . . . . . . Damage Inflicted 12459 | 89 1081 122 2662 33 . 158 2555 828 . 589 . . 541 383 311 1256 172 336 85 . . 124 477 . . . 427 . 102 128 . Guns 2975 | 89 668 16 1310 26 . . 866 . . . . . . . . . . . . . . . . . . . . . . . . Cannons 655 | . 322 45 116 . . . . . . . . . . . . . . . 44 . . . . . . . . . . 128 . Explosions 2093 | . 77 . 465 . . 135 965 . . 451 . . . . . . . . . . . . . . . . . . . . . Melee 6624 | . . 61 738 . . . 689 828 . 138 . . 541 383 311 1256 172 336 41 . . 124 477 . . . 427 . 102 . . Ramming 112 | . 14 . 33 7 . 23 35 . . . . . . . . . . . . . . . . . . . . . . . . Kinetic 2294 | 33 413 43 913 26 . . 866 . . . . . . . . . . . . . . . . . . . . . . . . Thermal 664 | 56 332 . 104 . . . . . . . . . . . . . . . 44 . . . . . . . . . . 128 . Explosive 1820 | . . . 269 . . 135 965 . . 451 . . . . . . . . . . . . . . . . . . . . . Electromagnetic 945 | . 322 18 605 . . . . . . . . . . . . . . . . . . . . . . . . . . . . Impact 374 | . . 61 . . . . . . . . . . . . . . . . . . . 124 189 . . . . . . . . Slashing 6250 | . . . 738 . . . 689 828 . 138 . . 541 383 311 1256 172 336 41 . . . 288 . . . 427 . 102 . . Piercing . | . . . . . . . . . . . . . . . . . . . . . . . . . . . . . . . . Highest Corruption 21 | . 2 2 21 21 21 21 2 1 1 1 1 1 . . . . . . . . . . . . . . . . . . . Average Corruption 6 | . 2 2 4 21 21 21 2 1 1 1 1 1 . . . . . . . . . . . . . . . . . . . Corruption Purged . | . . . . . . . . . . . . . . . . . . . . . . . . . . . . . . . . Corruption Blocked . | . . . . . . . . . . . . . . . . . . . . . . . . . . . . . . . . Effects 148 | . 3 9 33 16 26 30 24 4 . 1 1 1 . . . . . . . . . . . . . . . . . . . Message Errors 31 | . . 3 9 . 7 6 5 . . . 1 . . . . . . . . . . . . . . . . . . . . Matter Fused 43 | . . 3 6 5 9 10 7 2 . 1 . . . . . . . . . . . . . . . . . . . . . Heat Flow Errors 17 | . 1 2 3 2 1 3 5 . . . . . . . . . . . . . . . . . . . . . . . . Energy Discharges 19 | . 1 1 3 2 3 5 2 1 . . . 1 . . . . . . . . . . . . . . . . . . . Parts Rejected 2 | . . . 2 . . . . . . . . . . . . . . . . . . . . . . . . . . . . Parts Fused 2 | . 1 . . 1 . . . . . . . . . . . . . . . . . . . . . . . . . . . Data Loss (minor) 16 | . . . 3 2 5 1 4 1 . . . . . . . . . . . . . . . . . . . . . . . Data Loss (major) 7 | . . . 2 2 1 2 . . . . . . . . . . . . . . . . . . . . . . . . . Misfires 9 | . . . 4 2 . 2 1 . . . . . . . . . . . . . . . . . . . . . . . . Alerts 1 | . . . . . . 1 . . . . . . . . . . . . . . . . . . . . . . . . . Misdirections 1 | . . . 1 . . . . . . . . . . . . . . . . . . . . . . . . . . . . Overload Shots . | . . . . . . . . . . . . . . . . . . . . . . . . . . . . . . . . Overflow Damage 1029 | . 6 . 56 . . . 22 98 . . . . 101 . . 321 30 21 . . . 100 219 . . . 55 . . . . Projectiles 6 | . 6 . . . . . . . . . . . . . . . . . . . . . . . . . . . . . . Explosions 9 | . . . 9 . . . . . . . . . . . . . . . . . . . . . . . . . . . . Melee 1014 | . . . 47 . . . 22 98 . . . . 101 . . 321 30 21 . . . 100 219 . . . 55 . . . . Knockbacks 1 | . . . . . . . . . . . . . . . . . . . . . . . 1 . . . . . . . . Impact 1 | . . . . . . . . . . . . . . . . . . . . . . . 1 . . . . . . . . Kinetic . | . . . . . . . . . . . . . . . . . . . . . . . . . . . . . . . . Secondary . | . . . . . . . . . . . . . . . . . . . . . . . . . . . . . . . . Self-Inflicted Damage 185 | . 25 . 105 . . 16 39 . . . . . . . . . . . . . . . . . . . . . . . . Shots 8 | . 1 . 3 . . 1 3 . . . . . . . . . . . . . . . . . . . . . . . . Rammed 19 | . 6 . 2 1 . 1 9 . . . . . . . . . . . . . . . . . . . . . . . . Targets Rammed 22 | . 8 . 2 1 . 2 9 . . . . . . . . . . . . . . . . . . . . . . . . Kicked . | . . . . . . . . . . . . . . . . . . . . . . . . . . . . . . . . Crushed 3 | . 2 . . . . 1 . . . . . . . . . . . . . . . . . . . . . . . . . Highest Temperature 340 | 20 186 340 253 202 110 222 212 . . . . . . 5 2 2 11 138 210 49 322 9 99 35 27 85 40 . 42 50 250 Average Temperature 46 | 14 32 155 63 96 57 104 73 . . . . . . 1 1 1 1 45 86 24 147 4 29 9 7 33 11 . 21 26 137 Received Heat Transfer 1651 | . 150 . 477 13 . . 699 9 . . . 12 . 57 9 . 18 . 9 27 9 45 . 9 . . . 27 81 . . Effects 5 | . . 2 . . . . 3 . . . . . . . . . . . . . . . . . . . . . . . . Shutdowns 1 | . . 1 . . . . . . . . . . . . . . . . . . . . . . . . . . . . . Energy Bleed 1 | . . 1 . . . . . . . . . . . . . . . . . . . . . . . . . . . . . Interference 3 | . . . . . . . 3 . . . . . . . . . . . . . . . . . . . . . . . . Siege Activations 1 | . . . . . . . . . . . . . . . . . . . . . . . . . . . . . . . 1 Total Turns 13 | . . . . . . . . . . . . . . . . . . . . . . . . . . . . . . . 13 Longest Duration 13 | . . . . . . . . . . . . . . . . . . . . . . . . . . . . . . . 13 Robots Corrupted 4 | . . . 2 . . . . . . . . . . . . . . . . . . . 2 . . . . . . . . Combat Hostiles 1 | . . . 1 . . . . . . . . . . . . . . . . . . . . . . . . . . . . Parts Fried 11 | . 2 . 3 . . . . . . . . . . . . . . . . . . 1 5 . . . . . . . . Impact Corruptions 6 | . . . . . . . . . . . . . . . . . . . . . . 2 4 . . . . . . . . Robots Melted 2 | . . . . . . . . . . . . . . . . . . . . . . . . . . . . . . 2 . Combat Hostiles 2 | . . . . . . . . . . . . . . . . . . . . . . . . . . . . . . 2 . Parts Melted 4 | . . . . . . . . . . . . . . . . . . . . . . . . . . . . . . 4 . Heat Transferred 1207 | 125 675 . 259 . . . . . . . . . . . . . . . 37 . . . . . . . . . . 111 . Parts Sabotaged . | . . . . . . . . . . . . . . . . . . . . . . . . . . . . . . . . Parts Stolen . | . . . . . . . . . . . . . . . . . . . . . . . . . . . . . . . . Parts Stripped . | . . . . . . . . . . . . . . . . . . . . . . . . . . . . . . . . Power Chain Reactions 2 | . 1 . 1 . . . . . . . . . . . . . . . . . . . . . . . . . . . . Alert | -11 -10 -10 -9 -9 -9 -8 -8 -7 -7 -7 -7 -6 -6 -6 -6 -6 -6 -5 -5 -5 -5 -4 -4 -4 -4 -3 -2 -2 -2 -1 -1 ------- Run | Yrd Mat Min Mat Min Exi Min Mat Fac Low Low Dat Pro Fac Ext Cet Arc Hub Fac Upp Upp War Pro Fac Arm Lab Res Res Qua Sec Acc Com Peak Influence 1927 | 15 342 133 345 113 . 83 468 208 . . . . 170 424 261 365 680 426 . . . . 339 320 . 6 147 1927 1817 1265 851 Initial 1100 | . 9 133 . 45 . . . 113 . . . . 28 83 187 104 127 294 . . . . 206 165 . . 3 82 1100 1100 809 Average 240 | 6 117 47 127 74 . 19 212 131 . . . . 110 203 248 313 292 349 . . . . 275 199 . 1 63 1824 1697 1201 842 Maximum Alert Level 5 | . 1 . 1 . . . 2 1 . . . . . 2 1 1 2 2 . . . . 1 1 . . . 5 5 4 4 Low Security (%) 58 | 100 83 100 75 100 . 100 26 98 . . . . 100 39 15 11 53 . . . . . . 78 . 100 100 . . . . Level 1 33 | . 16 . 24 . . . 65 1 . . . . . 58 84 88 18 98 . . . . 100 21 . . . . . . . Level 2 1 | . . . . . . . 7 . . . . . . 1 . . 27 1 . . . . . . . . . . . . . Level 3 1 | . . . . . . . . . . . . . . . . . . . . . . . . . . . . . . . 93 Level 4 1 | . . . . . . . . . . . . . . . . . . . . . . . . . . . . . . 100 6 Level 5 . | . . . . . . . . . . . . . . . . . . . . . . . . . . . . . . . . High Security . | . . . . . . . . . . . . . . . . . . . . . . . . . . . . . . . . Max Security 3 | . . . . . . . . . . . . . . . . . . . . . . . . . . . . 99 99 . . Squads Dispatched 47 | . 3 1 1 . . . 3 3 . 1 . . 3 . . . 2 2 . . . 1 . 2 . 1 3 14 6 1 . Investigation 7 | . 1 . . . . . . 1 . . . . 3 . . . . 1 . . . . . 1 . . . . . . . Extermination 1 | . . . . . . . . 1 . . . . . . . . . . . . . . . . . . . . . . . Reinforcement 14 | . 2 . 1 . . . 3 1 . . . . . . . . 2 1 . . . . . 1 . 1 2 . . . . Assault 22 | . . 1 . . . . . . . 1 . . . . . . . . . . . 1 . . . . . 13 6 . . Garrison . | . . . . . . . . . . . . . . . . . . . . . . . . . . . . . . . . Intercept 3 | . . . . . . . . . . . . . . . . . . . . . . . . . . . 1 1 . 1 . Searches Triggered . | . . . . . . . . . . . . . . . . . . . . . . . . . . . . . . . . Construction Impeded . | . . . . . . . . . . . . . . . . . . . . . . . . . . . . . . . . Haulers Reinforced 1 | . . . . . . . . . . . . . . . . . . . . . . . . . . . 1 . . . . Active Scanning Responses . | . . . . . . . . . . . . . . . . . . . . . . . . . . . . . . . . Cargo Convoy Interrupts . | . . . . . . . . . . . . . . . . . . . . . . . . . . . . . . . . Stealth | -11 -10 -10 -9 -9 -9 -8 -8 -7 -7 -7 -7 -6 -6 -6 -6 -6 -6 -5 -5 -5 -5 -4 -4 -4 -4 -3 -2 -2 -2 -1 -1 --------- Run | Yrd Mat Min Mat Min Exi Min Mat Fac Low Low Dat Pro Fac Ext Cet Arc Hub Fac Upp Upp War Pro Fac Arm Lab Res Res Qua Sec Acc Com Distress Signals 22 | . 1 . 3 . . . 5 . . . . . 1 2 1 . 1 1 . . . . . 1 . 1 2 1 . . 2 Communications Jammed . | . . . . . . . . . . . . . . . . . . . . . . . . . . . . . . . . Distress Signals . | . . . . . . . . . . . . . . . . . . . . . . . . . . . . . . . . Times Spotted 379 | . 26 21 37 3 . 3 33 13 5 5 . 4 6 24 4 9 7 4 5 6 22 16 9 18 . 5 11 20 51 4 8 Peak Tracking Total 48 | . 4 12 8 2 . 3 9 4 6 5 . 3 2 4 4 1 3 4 3 6 13 12 8 12 . 7 5 12 48 2 4 Tactical Retreats 26 | . 1 1 1 . . . 3 3 1 . . 2 1 . . . 1 1 1 . 1 1 . 3 . . 1 4 . . . Traps | -11 -10 -10 -9 -9 -9 -8 -8 -7 -7 -7 -7 -6 -6 -6 -6 -6 -6 -5 -5 -5 -5 -4 -4 -4 -4 -3 -2 -2 -2 -1 -1 ------- Run | Yrd Mat Min Mat Min Exi Min Mat Fac Low Low Dat Pro Fac Ext Cet Arc Hub Fac Upp Upp War Pro Fac Arm Lab Res Res Qua Sec Acc Com Traps Triggered 12 | . 1 . 2 . . . 2 . . . . . . 2 . . 1 . . . . . 1 2 . . . . . . 1 Indirectly . | . . . . . . . . . . . . . . . . . . . . . . . . . . . . . . . . Trap Hack Attempts . | . . . . . . . . . . . . . . . . . . . . . . . . . . . . . . . . Triggered . | . . . . . . . . . . . . . . . . . . . . . . . . . . . . . . . . Disarmed . | . . . . . . . . . . . . . . . . . . . . . . . . . . . . . . . . Reprogrammed 6 | . . . . . . . . . . . . . . . . . . . . . . . 6 . . . . . . . . Reused . | . . . . . . . . . . . . . . . . . . . . . . . . . . . . . . . . Traps Extracted . | . . . . . . . . . . . . . . . . . . . . . . . . . . . . . . . . Installed . | . . . . . . . . . . . . . . . . . . . . . . . . . . . . . . . . Triggered 21 | . 1 . . . . . . . . . . . . . . . . . . . 20 . . . . . . . . . . Machines | -11 -10 -10 -9 -9 -9 -8 -8 -7 -7 -7 -7 -6 -6 -6 -6 -6 -6 -5 -5 -5 -5 -4 -4 -4 -4 -3 -2 -2 -2 -1 -1 ---------- Run | Yrd Mat Min Mat Min Exi Min Mat Fac Low Low Dat Pro Fac Ext Cet Arc Hub Fac Upp Upp War Pro Fac Arm Lab Res Res Qua Sec Acc Com Machines Disabled 28 | . . . 5 . . . . . . . . . . 1 . 3 1 . . . 2 . . 1 4 . . 5 4 . 2 Max in Single Turn 2 | . . . 2 . . . . . . . . . . . . . 1 . . . 1 . . 1 2 . . 1 1 . 2 Garrison Access 6 | . . . . . . . 1 . . . . . 2 . . . . 2 . . . . . . . . 1 . . . . Network Hub 1 | . . . . . . . . . . . . . . . . . 1 . . . . . . . . . . . . . . Machines Repaired . | . . . . . . . . . . . . . . . . . . . . . . . . . . . . . . . . Machines Dismantled 1 | . . . . . . . . . . . . . . . . . 1 . . . . . . . . . . . . . . Machines Sabotaged . | . . . . . . . . . . . . . . . . . . . . . . . . . . . . . . . . Overloaded Fab Kills . | . . . . . . . . . . . . . . . . . . . . . . . . . . . . . . . . Hacking | -11 -10 -10 -9 -9 -9 -8 -8 -7 -7 -7 -7 -6 -6 -6 -6 -6 -6 -5 -5 -5 -5 -4 -4 -4 -4 -3 -2 -2 -2 -1 -1 --------- Run | Yrd Mat Min Mat Min Exi Min Mat Fac Low Low Dat Pro Fac Ext Cet Arc Hub Fac Upp Upp War Pro Fac Arm Lab Res Res Qua Sec Acc Com Machines Accessed 67 | . 2 1 3 . 1 . 3 9 1 1 4 . 12 3 1 . . 8 1 . 6 . 2 1 2 . 3 . . 1 2 Terminals 34 | . 2 . 3 . . . 2 4 . . . . 8 2 1 . . 5 . . . . 2 . . . 2 . . 1 2 Fabricators 7 | . . . . . . . . 3 . . . . 2 . . . . 1 . . . . . 1 . . . . . . . Repair Stations 3 | . . . . . . . . 1 . . . . . 1 . . . . . . . . . . . . 1 . . . . Recycling Units . | . . . . . . . . . . . . . . . . . . . . . . . . . . . . . . . . Scanalyzers . | . . . . . . . . . . . . . . . . . . . . . . . . . . . . . . . . Garrison Access 6 | . . . . . . . 1 1 . . . . 2 . . . . 2 . . . . . . . . . . . . . Total Hacks 207 | . 10 1 12 . 1 . 9 20 1 1 30 . 24 8 1 . . 30 1 . 12 . 20 4 2 . 13 . . 2 5 Successful 136 | . 3 1 8 . 1 . 1 8 1 1 30 . 14 4 1 . . 21 1 . 12 . 8 3 2 . 10 . . 2 4 Failed 70 | . 7 . 4 . . . 8 12 . . . . 10 4 . . . 8 . . . . 12 1 . . 3 . . . 1 Catastrophic 13 | . 3 . 1 . . . 2 2 . . . . 2 . . . . . . . . . 2 . . . . . . . 1 Database Lockouts 1 | . . . . . . . . . . . . . . . . . . 1 . . . . . . . . . . . . . Manual 95 | . 10 . 12 . 1 . 7 9 1 . . . 14 . 1 . . 16 . . . . 14 1 . . 4 . . 2 3 Terminals 121 | . 10 . 12 . . . 7 10 . . . . 16 4 1 . . 24 . . . . 20 . . . 10 . . 2 5 Fabricators 19 | . . . . . . . . 5 . . . . 6 . . . . 4 . . . . . 4 . . . . . . . Repair Stations 10 | . . . . . . . . 3 . . . . . 4 . . . . . . . . . . . . 3 . . . . Recycling Units . | . . . . . . . . . . . . . . . . . . . . . . . . . . . . . . . . Scanalyzers . | . . . . . . . . . . . . . . . . . . . . . . . . . . . . . . . . Garrison Access 8 | . . . . . . . 2 2 . . . . 2 . . . . 2 . . . . . . . . . . . . . Terminal Hacks 97 | . 2 1 6 . 1 . . 2 1 1 30 . 3 3 1 . . 13 1 . 12 . 7 . 2 . 7 . . 1 3 Record 29 | . . . 1 . . . . . . . 11 . 1 1 . . . 4 . . 6 . . . 1 . 3 . . . 1 Part Schematic 13 | . . . . . . . . . . . 11 . . . . . . 1 . . . . 1 . . . . . . . . Robot Schematic 5 | . . . . . . . . . . . 5 . . . . . . . . . . . . . . . . . . . . Robot Analysis 10 | . 1 . 3 . . . . . . . . . . 1 . . . 3 . . . . . . . . 2 . . . . Prototype ID Bank 13 | . 1 . . . . . . 1 . . 3 . . 1 . . . 1 . . 5 . 1 . . . . . . . . Open Door 7 | . . 1 . . . . . . 1 1 . . 1 . 1 . . . 1 . 1 . . . . . . . . . . Branch Access Points 6 | . . . . . . . . 1 . . . . 1 . . . . 1 . . . . 1 . . . 1 . . 1 . Machine Index 3 | . . . . . . . . . . . . . . . . . . 1 . . . . 1 . . . . . . . 1 Alert Level 1 | . . . . . . . . . . . . . . . . . . . . . . . 1 . . . . . . . . Unreport Threat 2 | . . . 2 . . . . . . . . . . . . . . . . . . . . . . . . . . . . Reprogram Traps 1 | . . . . . . . . . . . . . . . . . . . . . . . 1 . . . . . . . . Recall Investigation 1 | . . . . . . . . . . . . . . . . . . 1 . . . . . . . . . . . . . Recall Reinforcements 1 | . . . . . . . . . . . . . . . . . . 1 . . . . . . . . . . . . . Hauler Manifests 1 | . . . . . . . . . . . . . . . . . . . . . . . 1 . . . . . . . . Zone Layout 1 | . . . . . . . . . . . . . . . . . . . . . . . . . . . 1 . . . . Derelict Proto ID Bank 1 | . . . . . 1 . . . . . . . . . . . . . . . . . . . . . . . . . . Disengage Seal 1 | . . . . . . . . . . . . . . . . . . . . . . . . . . . . . . . 1 Release Object 1 | . . . . . . . . . . . . . . . . . . . . . . . . . 1 . . . . . . Fabricator Hacks 10 | . . . . . . . . 1 . . . . 4 . . . . 3 . . . . . 2 . . . . . . . Network Status 3 | . . . . . . . . 1 . . . . 2 . . . . . . . . . . . . . . . . . . Load Schematic 3 | . . . . . . . . . . . . . 1 . . . . 1 . . . . . 1 . . . . . . . Build 4 | . . . . . . . . . . . . . 1 . . . . 2 . . . . . 1 . . . . . . . Repair Station Hacks 6 | . . . . . . . . 3 . . . . . 1 . . . . . . . . . . . . 2 . . . . Scan Component 3 | . . . . . . . . 1 . . . . . 1 . . . . . . . . . . . . 1 . . . . Repair 2 | . . . . . . . . 1 . . . . . . . . . . . . . . . . . . 1 . . . . Refit 1 | . . . . . . . . 1 . . . . . . . . . . . . . . . . . . . . . . . Recycling Unit Hacks . | . . . . . . . . . . . . . . . . . . . . . . . . . . . . . . . . Scanalyzer . | . . . . . . . . . . . . . . . . . . . . . . . . . . . . . . . . Garrison Access Hacks 5 | . . . . . . . 1 . . . . . 2 . . . . 2 . . . . . . . . . . . . . Seal Access 5 | . . . . . . . 1 . . . . . 2 . . . . 2 . . . . . . . . . . . . . Unauthorized Hacks 17 | . 1 . 1 . . . . 2 . . . . 5 . . . . 3 . . . . 1 1 . . 1 . . 1 1 Terminals 15 | . 1 . 1 . . . . 2 . . . . 5 . . . . 2 . . . . 1 . . . 1 . . 1 1 Assimilate 1 | . . . . . . . . . . . . . . . . . . 1 . . . . . . . . . . . . . Botnet 14 | . 1 . 1 . . . . 2 . . . . 5 . . . . 1 . . . . 1 . . . 1 . . 1 1 Fabricators 2 | . . . . . . . . . . . . . . . . . . 1 . . . . . 1 . . . . . . . Prioritize 2 | . . . . . . . . . . . . . . . . . . 1 . . . . . 1 . . . . . . . Repair Stations . | . . . . . . . . . . . . . . . . . . . . . . . . . . . . . . . . Recycling Units . | . . . . . . . . . . . . . . . . . . . . . . . . . . . . . . . . Scanalyzers . | . . . . . . . . . . . . . . . . . . . . . . . . . . . . . . . . Garrison Access . | . . . . . . . . . . . . . . . . . . . . . . . . . . . . . . . . Data Cores Recovered 2 | . . . . . . . . . . . . . 1 . . . . . . . . . . . . . . . . 1 . Used 2 | . . . . . . . . . . . . . 1 . . . . . . . . . . . . . . . . 1 . Hacking Detections 35 | . 2 . 2 . . . 2 7 . . . . 8 3 . . . 5 . . . . 1 1 . . 3 . . . 1 Full Trace Events 6 | . . . . . . . . 1 . . . . 3 . . . . 1 . . . . . 1 . . . . . . . Feedback Events . | . . . . . . . . . . . . . . . . . . . . . . . . . . . . . . . . Feedback Blocked . | . . . . . . . . . . . . . . . . . . . . . . . . . . . . . . . . Robot Schematics Acquired 5 | . . . . . . . . . . . 5 . . . . . . . . . . . . . . . . . . . . Robots Built . | . . . . . . . . . . . . . . . . . . . . . . . . . . . . . . . . Authchips . | . . . . . . . . . . . . . . . . . . . . . . . . . . . . . . . . Time . | . . . . . . . . . . . . . . . . . . . . . . . . . . . . . . . . Total Robot Build Rating . | . . . . . . . . . . . . . . . . . . . . . . . . . . . . . . . . Part Schematics Acquired 13 | . . . . . . . . . . . 11 . . . . . . 1 . . . . 1 . . . . . . . . Parts Built 5 | . . . . . . . . . . . . . 1 . . . . 3 . . . . . 1 . . . . . . . Authchips . | . . . . . . . . . . . . . . . . . . . . . . . . . . . . . . . . Time 288 | . . . . . . . . . . . . . 50 . . . . 192 . . . . . 46 . . . . . . . Total Part Build Rating 36 | . . . . . . . . . . . . . 5 . . . . 24 . . . . . 7 . . . . . . . Parts Repaired 2 | . . . . . . . . 1 . . . . . . . . . . . . . . . . . . 1 . . . . Time 64 | . . . . . . . . 44 . . . . . . . . . . . . . . . . . . 20 . . . . Parts Recycled . | . . . . . . . . . . . . . . . . . . . . . . . . . . . . . . . . Recycled Matter . | . . . . . . . . . . . . . . . . . . . . . . . . . . . . . . . . Retrieved Matter . | . . . . . . . . . . . . . . . . . . . . . . . . . . . . . . . . Retrieved Components . | . . . . . . . . . . . . . . . . . . . . . . . . . . . . . . . . Parts Scanalyzed . | . . . . . . . . . . . . . . . . . . . . . . . . . . . . . . . . Part Schematics Acquired . | . . . . . . . . . . . . . . . . . . . . . . . . . . . . . . . . Parts Damaged . | . . . . . . . . . . . . . . . . . . . . . . . . . . . . . . . . Bothacking | -11 -10 -10 -9 -9 -9 -8 -8 -7 -7 -7 -7 -6 -6 -6 -6 -6 -6 -5 -5 -5 -5 -4 -4 -4 -4 -3 -2 -2 -2 -1 -1 ------------ Run | Yrd Mat Min Mat Min Exi Min Mat Fac Low Low Dat Pro Fac Ext Cet Arc Hub Fac Upp Upp War Pro Fac Arm Lab Res Res Qua Sec Acc Com Used RIF Installer . | . . . . . . . . . . . . . . . . . . . . . . . . . . . . . . . . Robots Hacked . | . . . . . . . . . . . . . . . . . . . . . . . . . . . . . . . . Non-combat . | . . . . . . . . . . . . . . . . . . . . . . . . . . . . . . . . Combat . | . . . . . . . . . . . . . . . . . . . . . . . . . . . . . . . . Robot Hacks Applied . | . . . . . . . . . . . . . . . . . . . . . . . . . . . . . . . . Relay Couplers Released 1 | . . . . . . . . . . . . . . . . . . . . . . . . . . . 1 . . . . Machine Destruction 1 | . . . . . . . . . . . . . . . . . . . . . . . . . . . 1 . . . . Fabnet Peak Effective % . | . . . . . . . . . . . . . . . . . . . . . . . . . . . . . . . . Robots Rewired 14 | . . . . . . . . 1 . . . . . 13 . . . . . . . . . . . . . . . . . Allies Hacked . | . . . . . . . . . . . . . . . . . . . . . . . . . . . . . . . . Hacks Repelled . | . . . . . . . . . . . . . . . . . . . . . . . . . . . . . . . . Allies | -11 -10 -10 -9 -9 -9 -8 -8 -7 -7 -7 -7 -6 -6 -6 -6 -6 -6 -5 -5 -5 -5 -4 -4 -4 -4 -3 -2 -2 -2 -1 -1 -------- Run | Yrd Mat Min Mat Min Exi Min Mat Fac Low Low Dat Pro Fac Ext Cet Arc Hub Fac Upp Upp War Pro Fac Arm Lab Res Res Qua Sec Acc Com Total Allies 36 | . . 1 . 1 . . . 1 . . . . . 24 5 . 3 1 . . . . . . . . . . . . . Largest Group 10 | . . 1 . 1 . . . 1 . . . . . 10 7 6 7 1 . . . . . . . . . . . . . Highest-Rated Group 653 | . . 31 . 31 . . . 21 . . . . . 292 653 500 477 26 . . . . . . . . . . . . . Highest-Rated Ally 159 | . . 31 . 31 . . . 21 . . . . . 159 159 96 96 26 . . . . . . . . . . . . . Total Orders 4 | . . . . . . . . . . . . . . . 1 3 . . . . . . . . . . . . . . . ROAM 1 | . . . . . . . . . . . . . . . . 1 . . . . . . . . . . . . . . . FOLLOW 2 | . . . . . . . . . . . . . . . . 2 . . . . . . . . . . . . . . . EXPLORE 1 | . . . . . . . . . . . . . . . 1 . . . . . . . . . . . . . . . . Ally Attacks 290 | . . 4 . 4 . . . 4 . . . . . 169 16 38 55 . . . . . . . . . . . . . . Total Damage 6450 | . . 43 . 65 . . . 74 . . . . . 2582 488 1525 1673 . . . . . . . . . . . . . . Kills 48 | . . . . 1 . . . 1 . . . . . 25 5 4 12 . . . . . . . . . . . . . . Allies Corrupted 1 | . . . . . . . . . . . . . . . . . 1 . . . . . . . . . . . . . . Allies Melted 4 | . . . . . . . . . . . . . . 2 . . . . . . 2 . . . . . . . . . . Intel | -11 -10 -10 -9 -9 -9 -8 -8 -7 -7 -7 -7 -6 -6 -6 -6 -6 -6 -5 -5 -5 -5 -4 -4 -4 -4 -3 -2 -2 -2 -1 -1 ------- Run | Yrd Mat Min Mat Min Exi Min Mat Fac Low Low Dat Pro Fac Ext Cet Arc Hub Fac Upp Upp War Pro Fac Arm Lab Res Res Qua Sec Acc Com Robot Analysis Total 10 | . 1 . 3 . . . . . . . . . . 1 . . . 3 . . . . . . . . 2 . . . . Derelict Logs Recovered 7 | . . 2 . . . . . . 1 1 . 1 . . . . . . . 1 . 1 . . . . . . . . . Drone Launches 4 | . . . . . . . . . . . . . . 3 1 . . . . . . . . . . . . . . . . Drone Recoveries . | . . . . . . . . . . . . . . . . . . . . . . . . . . . . . . . . Exploration | -11 -10 -10 -9 -9 -9 -8 -8 -7 -7 -7 -7 -6 -6 -6 -6 -6 -6 -5 -5 -5 -5 -4 -4 -4 -4 -3 -2 -2 -2 -1 -1 ------------- Run | Yrd Mat Min Mat Min Exi Min Mat Fac Low Low Dat Pro Fac Ext Cet Arc Hub Fac Upp Upp War Pro Fac Arm Lab Res Res Qua Sec Acc Com Turns Passed 15753 | 155 1137 812 1970 310 601 698 2198 770 194 367 69 249 295 1186 290 369 184 380 149 49 882 171 378 254 506 70 277 317 171 139 156 Spaces Moved 16480 | 77 513 354 708 116 249 284 739 1124 371 657 139 493 569 1194 169 405 312 996 480 189 1678 520 1134 428 240 146 673 446 480 378 219 Core 6 | 4 . . . . . . . . . . . . . 1 . . . . . . . . 1 . . . . . . . . Treads 2049 | 73 513 . 76 116 249 284 738 . . . . . . . . . . . . . . . . . . . . . . . . Legs . | . . . . . . . . . . . . . . . . . . . . . . . . . . . . . . . . Wheels 986 | . . 354 632 . . . . . . . . . . . . . . . . . . . . . . . . . . . . Hover . | . . . . . . . . . . . . . . . . . . . . . . . . . . . . . . . . Flight 13395 | . . . . . . . 1 1124 371 657 139 493 569 1193 169 405 312 996 480 189 1678 520 1133 428 240 146 673 446 436 378 219 Fastest Speed 13 | 50 160 100 100 240 240 240 50 50 50 50 50 50 39 22 22 22 22 19 23 16 23 23 13 13 21 21 17 17 20 20 20 Average Speed 61 | 154 160 106 215 240 240 240 239 50 50 50 50 50 40 34 22 22 22 19 23 22 23 23 21 23 29 28 20 19 20 20 20 Slowest Speed 650 | 160 160 120 480 240 240 240 240 50 50 50 50 50 42 300 22 22 22 23 23 23 89 23 650 24 100 100 25 20 20 20 20 Overloaded Moves 29 | . . . . . . . . . . . . . . . . . . . . 11 . . 2 3 . . 7 6 . . . Propulsion Burnouts . | . . . . . . . . . . . . . . . . . . . . . . . . . . . . . . . . Robots Hopped 26 | . . . . . . . . 1 . . . . 5 6 1 . . 1 . . . 3 1 . . 1 1 1 1 . 4 Cave-ins Triggered . | . . . . . . . . . . . . . . . . . . . . . . . . . . . . . . . . Teleports 2 | . . . . . . . . . . . . . . . . . . . . . . . . . 1 . . 1 . . . Spacefolds 19 | . . . . . . . . . . . . . . . . . . . . . . . . . . . . . 19 . . Exploration Rate (%) 52 | 7 93 63 71 36 62 85 59 35 54 70 71 64 19 97 65 96 25 24 66 48 93 65 30 39 98 3 12 54 45 10 9 Regions Visited 31 Branch Regions 21 Pre-discovered Areas 5 | . . 2 . . . . . . . . 1 1 . . . . . . . . . 1 . . . . . . . . . Known Exits Taken 7 | . . . . . . . 1 1 . . . . 1 . . . . 1 . . . . 1 . . . 1 . . 1 . Unknown Exits Taken 24 | 1 1 1 1 1 1 1 . . 1 1 1 1 . 1 1 1 1 . 1 1 1 1 . 1 1 1 . 1 1 . . Scrap Searched 14 | . . . . . . . . . 2 3 . 3 . . . . . . 4 1 . 1 . . . . . . . . . Spaces Dug 486 | . . 1 . . . . 1 17 1 1 . 1 8 2 . . 10 7 9 2 19 . 15 25 . 3 15 4 4 9 332 Terrain Destroyed 800 | . 4 3 45 . . 8 99 17 1 54 . 1 8 2 . . 10 7 10 2 30 . 15 25 73 3 15 4 4 20 340 Melee 143 | . . 1 . . . . 1 17 1 1 . 1 8 2 . . 10 7 8 2 7 . 15 25 . 3 15 4 4 7 4 Projectile 384 | . . 2 8 . . . . . . . . . . . . . . . 2 . 23 . . . . . . . . 13 336 AOE 273 | . 4 . 37 . . 8 98 . . 53 . . . . . . . . . . . . . . 73 . . . . . . Terrain Rammed . | . . . . . . . . . . . . . . . . . . . . . . . . . . . . . . . . Walls Destroyed . | . . . . . . . . . . . . . . . . . . . . . . . . . . . . . . . . Machines Disabled . | . . . . . . . . . . . . . . . . . . . . . . . . . . . . . . . . Actions | -11 -10 -10 -9 -9 -9 -8 -8 -7 -7 -7 -7 -6 -6 -6 -6 -6 -6 -5 -5 -5 -5 -4 -4 -4 -4 -3 -2 -2 -2 -1 -1 --------- Run | Yrd Mat Min Mat Min Exi Min Mat Fac Low Low Dat Pro Fac Ext Cet Arc Hub Fac Upp Upp War Pro Fac Arm Lab Res Res Qua Sec Acc Com Total 21003 | 97 699 771 961 147 257 295 1033 1274 377 685 138 493 597 1943 413 651 401 1161 495 190 2125 563 1229 536 654 167 776 656 503 412 304 Wait 3320 | . 68 395 40 22 . 3 134 83 . 16 . . 7 646 224 224 72 124 . . 391 44 43 70 377 18 51 185 26 5 52 Move 16375 | 76 512 353 707 115 248 283 738 1121 370 656 138 492 559 1182 166 404 311 993 479 188 1677 513 1131 427 239 143 670 443 452 377 212 Hop 23 | . . . . . . . . 1 . . . . 4 5 1 . . 1 . . . 3 1 . . 1 1 1 1 . 3 Pick Up 98 | 7 14 3 21 . 1 . 12 6 . 2 . . 2 2 1 . . 4 1 . 2 . 6 . 3 1 2 4 4 . . Fast Attach 92 | 7 1 3 6 1 . . 6 8 3 . . . . 8 4 1 . 5 . . 9 . 7 1 4 . 8 4 3 3 . Attach 62 | . 2 . 8 . . 2 16 2 . . . . 3 4 1 . 1 3 1 . 1 1 3 . 4 1 3 2 1 1 2 Detach 26 | . . . 1 . 2 . 1 3 . . . . 1 4 3 . 1 1 . . 1 . 1 . 1 . 3 . . 1 2 Swap 117 | . 5 2 36 3 . 3 18 2 . 2 . . 2 5 1 1 . 7 1 . 6 . 7 1 6 . 4 2 3 . . Drop 163 | . 9 4 20 4 6 . 25 8 3 2 . . 1 11 6 . . 10 1 . 13 . 10 1 7 . 11 5 4 1 1 Fire 293 | 7 80 7 97 1 . 2 53 . . 4 . . . . . . . . 3 . 10 . . . 2 . . . . 17 10 Melee 314 | . . 4 23 . . . 21 39 1 3 . 1 18 11 6 21 13 13 9 2 14 2 20 26 11 3 23 10 9 7 4 Ram 1 | . . . 1 . . . . . . . . . . . . . . . . . . . . . . . . . . . . Kick . | . . . . . . . . . . . . . . . . . . . . . . . . . . . . . . . . Crush 21 | . 8 . 1 1 . 2 9 . . . . . . . . . . . . . . . . . . . . . . . . Escape Stasis 48 | . . . . . . . . . . . . . . 20 . . . . . . . . . 10 . . . . . . 18 Rewire 47 | . . . . . . . . 1 . . . . . 45 . . . . . . 1 . . . . . . . . . . Trap . | . . . . . . . . . . . . . . . . . . . . . . . . . . . . . . . . Miscellaneous 3 | . . . . . . . . . . . . . . . . . 3 . . . . . . . . . . . . . . Route ------- -11/Scrapyard -10/Materials (discovered 5 exits: *Mat x3 / *Min x2) -10/Mines (discovered 2 exits: *Mat / [*Sub]) -9/Materials (discovered 5 exits: *Mat x3 / [*Min x2]) -9/Mines -9/Exiles -8/Mines -8/Materials -7/Factory (discovered 2 exits: *Low x2) -7/Lower Caves -7/Lower Caves -7/Data Miner -6/Proximity Caves -6/Factory (discovered 4 exits: Low x2 / *Ext x2) -6/Extension (discovered 2 exits: *Fac / *Cet) -6/Cetus -6/Archives (discovered 3 exits: *Fac / [*Hub x2]) -6/Hub_04(d) -5/Factory (discovered 2 exits: *Upp x2) -5/Upper Caves -5/Upper Caves -5/Warlord -4/Proximity Caves -4/Factory (discovered 4 exits: [*Res] / Upp x2 / *Arm) -4/Armory -4/Lab -3/Research -2/Research (discovered 2 exits: *Qua x2) -2/Quarantine -2/Section 7 -1/Access -1/Command To Fleet Rendezvous History --------- Turn | Location | Event 58 | -11/Scrapyard | Discovered new exit (range 13) 156 | -11/Scrapyard | Entered Materials 307 | -10/Materials | Build established: Mutant 442 | -10/Materials | Discovered new exit (range 15) 765 | -10/Materials | Discovered new exit (range 11) 897 | -10/Materials | Discovered new exit (range 14) 982 | -10/Materials | Discovered new exit (range 15) 1236 | -10/Materials | Discovered new exit (range 15) 1293 | -10/Materials | Entered Mines 1294 | -10/Mines | Met a Derelict testing a Signal Generator 1375 | -10/Mines | Assembled infested the area 1380 | -10/Mines | Assisted by a Guerilla fighting off Assembled 1430 | -10/Mines | Core integrity fell below 50% 1453 | -10/Mines | Core integrity fell below 20% 1787 | -10/Mines | Discovered new exit (range 5) 1931 | -10/Mines | Learned location of Storage (-9) 1961 | -10/Mines | Found the Drone Emporium 1969 | -10/Mines | Found Prototype Device 2083 | -10/Mines | A weapon hastily lodged in a ceiling crevice suddenly fell to the ground 2087 | -10/Mines | Discovered new exit (range 15) 2105 | -10/Mines | Entered Materials 2105 | -9/Materials | Evolved 2 slots: Propulsion x1, Utility x1 2407 | -9/Materials | Discovered new exit (range 16) 2542 | -9/Materials | Discovered new exit (range 7) 2707 | -9/Materials | Lost 3 parts (2u1w) 2966 | -9/Materials | Discovered new exit (range 16) 3211 | -9/Materials | Build established: Scavenger-Mutant 3440 | -9/Materials | Discovered new exit (range 13) 3767 | -9/Materials | Discovered new exit (range 8) 3912 | -9/Materials | System corruption reached 10% 4075 | -9/Materials | Entered Mines 4078 | -9/Mines | Received a Mining Laser from a helpful Derelict 4159 | -9/Mines | Joined a pair of Derelicts in attacking an 0b10 outpost 4354 | -9/Mines | Deemed a non-threat by the Exiles lab entrance 4354 | -9/Mines | Discovered new exit (range 5) 4385 | -9/Mines | Entered Exiles 4443 | -9/Exiles | Met 8R-AWN 4486 | -9/Exiles | Met EX-HEX 4565 | -9/Exiles | Met EX-BIN 4603 | -9/Exiles | Aligned with FarCom system 4606 | -9/Exiles | Given EX-Vault access code 4663 | -9/Exiles | Opened EX-Vault 4682 | -9/Exiles | Found Flying Fortress v7 4700 | -9/Exiles | Build established: Mutant 4731 | -9/Exiles | Warned to stay clear of 0b10 Research branches 4801 | -9/Exiles | Met EX-DEC 4950 | -9/Exiles | Discovered new exit (range 14) 4986 | -9/Exiles | Left Exiles lab with Flying Fortress v7 4986 | -9/Exiles | Entered Mines 5295 | -8/Mines | Build established: Scavenger-Mutant 5662 | -8/Mines | Discovered new exit (range 10) 5684 | -8/Mines | Entered Materials 5684 | -8/Materials | Evolved 2 slots: Propulsion x1, Utility x1 5696 | -8/Materials | Identified Decoy Drone Bay 6266 | -8/Materials | Destroyed 8 combat bots 6335 | -8/Materials | Destroyed 8 combat bots 7109 | -8/Materials | Lost 3 parts (1n1u1w) 7800 | -8/Materials | Discovered new exit (range 13) 7830 | -8/Materials | Identified exit to Factory 7882 | -8/Materials | Entered Factory 7882 | -7/Factory | Evolved 2 slots: Utility x2 8046 | -7/Factory | Repaired Ripper 8191 | -7/Factory | Discovered new exit (range 4) 8610 | -7/Factory | Identified exit to Lower Caves 8652 | -7/Factory | Entered Lower Caves 8708 | -7/Lower Caves | Learned location of 1 exit from Factory 8720 | -7/Lower Caves | Acquired the password to a Derelict Tinkerer's latest research 8724 | -7/Lower Caves | Found Prototype Special Weapon 8724 | -7/Lower Caves | Identified Molecular Deconstructor 8757 | -7/Lower Caves | Spotted B-75 Beast 8784 | -7/Lower Caves | Caught by Unaware searching for contraband prototypes 8786 | -7/Lower Caves | Caught by Unaware searching for contraband prototypes 8840 | -7/Lower Caves | Discovered new exit (range 13) 8845 | -7/Lower Caves | Build established: Hacker-Mutant 8846 | -7/Lower Caves | Entered another Lower Caves area 9003 | -7/Lower Caves | Encountered a Warlord checkpoint 9003 | -7/Lower Caves | Found DCF Scrap (14 items) 9025 | -7/Lower Caves | Learned Factory stockpile data 9156 | -7/Lower Caves | Attracted the attention of an 0b10 outpost 9204 | -7/Lower Caves | Discovered new exit (range 13) 9213 | -7/Lower Caves | Entered Data Miner 9213 | -7/Data Miner | Discovered new exit (range 6) 9223 | -7/Data Miner | Met Data Miner 9240 | -7/Data Miner | Learned location of Section 7 (-2) 9240 | -7/Data Miner | Acquired the access code to Warlord's prototype stash 9245 | -7/Data Miner | Received God Mode back door access code from Data Miner 9282 | -7/Data Miner | Entered Proximity Caves 9296 | -6/Proximity Caves | Attracted the attention of an 0b10 checkpoint 9327 | -6/Proximity Caves | Learned location of Zion (-6) 9461 | -6/Proximity Caves | Spotted B-75 Beast 9528 | -6/Proximity Caves | Discovered new exit (range 7) 9531 | -6/Proximity Caves | Entered Factory 9531 | -6/Factory | Evolved 2 slots: Propulsion x1, Utility x1 9532 | -6/Factory | Identified exit to Lower Caves 9603 | -6/Factory | Fabricated Gravity Neutralizer? 9713 | -6/Factory | Identified exit to Extension 9826 | -6/Factory | Entered Extension 9869 | -6/Extension | Rescued a captive Derelict 9873 | -6/Extension | Rescued a captive Derelict 9873 | -6/Extension | Rescued a captive Derelict 9950 | -6/Extension | Rescued a captive Derelict 9956 | -6/Extension | Rescued a captive Derelict 9987 | -6/Extension | Rescued a captive Derelict 9987 | -6/Extension | Rescued a captive Derelict 10086 | -6/Extension | Rescued a captive Derelict 10342 | -6/Extension | Spotted B-75 Beast 10358 | -6/Extension | Allies destroyed B-75 Beast 10374 | -6/Extension | Spotted B-75 Beast 10405 | -6/Extension | Lost 8 allies 10419 | -6/Extension | Discovered new exit (range 15) 10420 | -6/Extension | Discovered new exit (range 15) 10547 | -6/Extension | Lost 3 allies 10606 | -6/Extension | Rescued a captive Derelict 10607 | -6/Extension | Rescued a captive Derelict 10748 | -6/Extension | Rescued a captive Derelict 10820 | -6/Extension | Lost 6 allies 10825 | -6/Extension | Rescued A7 10938 | -6/Extension | Build established: Hacker-Sprinter 11012 | -6/Extension | Entered Cetus 11012 | -6/Cetus | Accompanied by 3 allies (A7) 11017 | -6/Cetus | Acquired a Cetus Manufacturing Module code from A7 11034 | -6/Cetus | Spotted Cetus Guard 11034 | -6/Cetus | Spotted Cetus Guard 11034 | -6/Cetus | Spotted Cetus Guard 11042 | -6/Cetus | Spotted Cetus Guard 11047 | -6/Cetus | Allies destroyed Cetus Guard 11068 | -6/Cetus | Allies destroyed Cetus Guard 11070 | -6/Cetus | Allies destroyed Cetus Guard 11100 | -6/Cetus | Started Cetus Manufacturing Module 11125 | -6/Cetus | Manufactured an Enhanced Grunt 11150 | -6/Cetus | Manufactured an Enhanced Grunt 11175 | -6/Cetus | Manufactured an Enhanced Grunt 11200 | -6/Cetus | Manufactured an Enhanced Grunt 11225 | -6/Cetus | Manufactured an Enhanced Grunt 11229 | -6/Cetus | Murdered A7 11232 | -6/Cetus | Extracted ID and sensor layout for unrecognized location from A7's data core 11237 | -6/Cetus | Found Prototype Protection 11237 | -6/Cetus | Identified Med. Regenerative Plating 11254 | -6/Cetus | Discovered new exit (range 15) 11302 | -6/Cetus | Entered Archives 11302 | -6/Archives | Accompanied by 6 allies 11407 | -6/Archives | Discovered new exit (range 16) 11423 | -6/Archives | Discovered new exit (range 16) 11472 | -6/Archives | Discovered new exit (range 16) 11671 | -6/Archives | Entered Hub_04(d) 11671 | -6/Hub_04(d) | Accompanied by 4 allies 11684 | -6/Hub_04(d) | Allied Derelicts emerged from ambush trap array 11716 | -6/Hub_04(d) | Build established: Wizard-Sprinter 11724 | -6/Hub_04(d) | Discovered new exit (range 9) 11816 | -6/Hub_04(d) | Network Hub disabled 11851 | -6/Hub_04(d) | Lost 4 allies 11851 | -6/Hub_04(d) | Spotted Lightning 11853 | -6/Hub_04(d) | Spotted Lightning 11854 | -6/Hub_04(d) | Spotted Lightning 11855 | -6/Hub_04(d) | Entered Factory 11855 | -5/Factory | Evolved 2 slots: Propulsion x1, Utility x1 11952 | -5/Factory | Discovered new exit (range 16) 11966 | -5/Factory | Identified exit to Upper Caves 12013 | -5/Factory | Central database locked down 12040 | -5/Factory | Fabricated Enh. Nova Cannon? 12210 | -5/Factory | Fabricated Nuclear Pulse Array (x1) 12235 | -5/Factory | Entered Upper Caves 12301 | -5/Upper Caves | Attracted the attention of an 0b10 checkpoint 12378 | -5/Upper Caves | Spotted B-75 Beast 12382 | -5/Upper Caves | Discovered new exit (range 7) 12384 | -5/Upper Caves | Entered another Upper Caves area 12413 | -5/Upper Caves | Learned Factory emergency access door positions 12417 | -5/Upper Caves | Encountered a Warlord checkpoint 12418 | -5/Upper Caves | P-70 Sage assimilated allied U5-4MM(M) 12431 | -5/Upper Caves | Discovered new exit (range 11) 12433 | -5/Upper Caves | Entered Warlord 12506 | -5/Warlord | Met Warlord 12530 | -5/Warlord | Found Prototype Device 12530 | -5/Warlord | Identified Exp. Cloaking Device 12531 | -5/Warlord | Warlord's base attacked by MAIN.C 12535 | -5/Warlord | Found Prototype Processor 12535 | -5/Warlord | Identified Exp. Armor Integrity Analyzer 12538 | -5/Warlord | Found Prototype Hackware 12538 | -5/Warlord | Identified System Mapper 12586 | -5/Warlord | Found Prototype Energy Gun 12586 | -5/Warlord | Identified Vortex Rail 12591 | -5/Warlord | Found Prototype Energy Cannon 12591 | -5/Warlord | Identified Vortex Driver 12615 | -5/Warlord | Found Prototype Energy Gun 12615 | -5/Warlord | Identified Vortex Shotgun 12633 | -5/Warlord | Found Prototype Launcher 12635 | -5/Warlord | Identified Vortex Catalyst Activator 12735 | -5/Warlord | Learned Quarantine trap positions 12736 | -5/Warlord | Learned 4 Quarantine zone layouts 12736 | -5/Warlord | Learned Armory fabricator intel 12736 | -5/Warlord | Learned Armory recycling unit intel 12881 | -5/Warlord | Warlord forces counterattacked 12883 | -5/Warlord | Spotted Striker 12883 | -5/Warlord | Spotted Executioner 12915 | -5/Warlord | P-80 Master assimilated allied XP-B3F(g) 13028 | -5/Warlord | Lost 24 allies 13206 | -5/Warlord | Warlord base infiltrated, sounded retreat 13312 | -5/Warlord | Discovered new exit (range 14) 13315 | -5/Warlord | Entered Proximity Caves 13348 | -4/Proximity Caves | Spotted B-86 Titan 13433 | -4/Proximity Caves | Attracted the attention of an 0b10 checkpoint 13459 | -4/Proximity Caves | Attracted the attention of an 0b10 outpost 13467 | -4/Proximity Caves | Spotter reported a threat 13485 | -4/Proximity Caves | Discovered new exit (range 5) 13486 | -4/Proximity Caves | Entered Factory 13486 | -4/Factory | Evolved 2 slots: Propulsion x1, Utility x1 13495 | -4/Factory | Identified exit to Upper Caves 13495 | -4/Factory | Identified exit to Armory 13637 | -4/Factory | Discovered new exit (range 7) 13864 | -4/Factory | Entered Armory 13865 | -4/Armory | Loaded intel: 8 fabricator locations 13866 | -4/Armory | Loaded intel: 2 recycling unit locations 13914 | -4/Armory | Fabricated Vibroblade (x1) 14114 | -4/Armory | Discovered new exit (range 4) 14118 | -4/Armory | Entered Lab 14118 | -4/Lab | Discovered new exit (range 9) 14121 | -4/Lab | Hidden lab's door opened automatically 14121 | -4/Lab | Sensor layout match revealed 14122 | -4/Lab | Gained access to the hidden lab's interior 14330 | -4/Lab | Unable to decrypt terminal 14343 | -4/Lab | Found Alien Artifact 14343 | -4/Lab | Identified Core Expander 14343 | -4/Lab | Installed Core Expander, added new Propulsion slot 14376 | -4/Lab | Found Alien Artifact 14376 | -4/Lab | Identified Integrated Mediator 14376 | -4/Lab | Installed Integrated Mediator, increased core attachment efficiency 14380 | -4/Lab | Found Alien Artifact 14410 | -4/Lab | Found Prototype Hackware 14410 | -4/Lab | Identified Deep Network Scanner 14569 | -4/Lab | Found Prototype Energy Cannon 14569 | -4/Lab | Identified Warp Cannon 14583 | -4/Lab | Detected for breach 14607 | -4/Lab | Unable to decrypt terminal 14609 | -4/Lab | Found Alien Artifact 14609 | -4/Lab | Identified LC Capacitor 14621 | -4/Lab | Identified Transdimensional Reconstructor 14621 | -4/Lab | Warped through subspace 14624 | -4/Lab | Entered Research 14624 | -3/Research | Evolved 2 slots: Power x1, Utility x1 14692 | -3/Research | Discovered new exit (range 9) 14694 | -3/Research | Entered another Research area 14694 | -2/Research | Warlord forces began assault on 0b10 14694 | -2/Research | Evolved 2 slots: Utility x2 14731 | -2/Research | Repaired Impulse Thruster 14742 | -2/Research | Identified exit to Quarantine 14804 | -2/Research | Research machine network offline 14857 | -2/Research | Lost 3 allies 14895 | -2/Research | Found Prototype Protection 14895 | -2/Research | Identified Centrium Heavy Armor Plating 14970 | -2/Research | Spotted Tracker 14970 | -2/Research | Spotted Tracker 14971 | -2/Research | Entered Quarantine 14972 | -2/Quarantine | Maximum security lockdown engaged 14973 | -2/Quarantine | Loaded intel: 14 trap records 14977 | -2/Quarantine | Found Alien Reactor 14992 | -2/Quarantine | Found Alien Artifact 14992 | -2/Quarantine | Identified Core Reset Matrix 14992 | -2/Quarantine | Identified Matter Drive 14992 | -2/Quarantine | Used Core Reset Matrix 14996 | -2/Quarantine | Detected hypermatrix surge 14996 | -2/Quarantine | Sensed 11 artifacts in vicinity 15023 | -2/Quarantine | Spotted Alpha 7 15040 | -2/Quarantine | Lost 3 allies 15043 | -2/Quarantine | Found Hpw. Transdimensional Reconstructor 15045 | -2/Quarantine | Found Hpw. Transdimensional Reconstructor 15096 | -2/Quarantine | Intercept squad dispatched 15096 | -2/Quarantine | Found Sigix Terminator 15105 | -2/Quarantine | Warped through subspace 15128 | -2/Quarantine | Spotted Fortress 15142 | -2/Quarantine | Discovered new exit (range 5) 15288 | -2/Quarantine | Entered Section 7 15289 | -2/Section 7 | Maximum security lockdown engaged 15289 | -2/Section 7 | Sensed 19 artifacts in vicinity 15310 | -2/Section 7 | Found Integrated Reactor 15310 | -2/Section 7 | Installed Integrated Reactor, increased core energy generation (+10) 15324 | -2/Section 7 | Found Integrated Reactor 15324 | -2/Section 7 | Installed Integrated Reactor, increased core energy generation (+10) 15339 | -2/Section 7 | Found Spacefold Activator 15349 | -2/Section 7 | Spotted Alpha 7 15357 | -2/Section 7 | Spotted Alpha 7 15403 | -2/Section 7 | Found Drained L-Cannon 15404 | -2/Section 7 | Installed L-Cannon capacitor 15415 | -2/Section 7 | Spotted Executioner 15418 | -2/Section 7 | Spotted Executioner 15447 | -2/Section 7 | Spotted B-90 Cyclops 15457 | -2/Section 7 | Core integrity fell below 50% 15457 | -2/Section 7 | Discovered new exit (range 3) 15459 | -2/Section 7 | Entered Access 15459 | -1/Access | Evolved 2 slots: Weapon x2 15479 | -1/Access | Identified exit to Command 15488 | -1/Access | Spotted B-99 Colossus 15578 | -1/Access | Intercept squad dispatched 15598 | -1/Access | Entered Command 15665 | -1/Command | Disengaged cave seal 15674 | -1/Command | Welcomed Warlord to Command 15744 | -1/Command | Fired L-Cannon 15744 | -1/Command | 0b10 Conduit disabled 15754 | *** | Heading to fleet! Last Messages --------------- Core. 15749_ Slug penetrates R-10 Processor. 15749_ R-10 Processor destroyed. 15750_ Blast Slug penetrates H-88 Terminator. 15750_ H-88 Terminator suffers critical hit (Blast). 15750_ Blast Slug penetrates 5H-8J2(g). 15750_ K-01 Serf destroyed. 15750_ H-88 Terminator Lgt. Quantum Reactor blasted off. 15750_ K-01 Serf destroyed. 15750_ K-01 Serf collects debris. 15753_ Slug penetrates 03-3MG(s). 15754_ K-01 Serf collects debris. Warlord: Victory! Sure there's still lots to do, but without MAIN.C at the helm 0b10 doesn't stand a chance. We've got this... Map ----- +----------------------------------------------------+ | ?????????????????????????????????????????????????? | | ?????????????????????????????????????????????????? | | ?????????????????????????????????????????????????? | | ?????????????????????????????????????????????????? | | ?????????????????????????????????????????????????? | | ??????????????????????????????????? ???????????? | | ???????????????????????????????????////#?????????? | | ??????????????????????????????????? #?????????? | | ?????????????????????????????###### #?????????? | | ????????????????????????????## #?????????? | | ????????????????????????????? #?????????? | | ????????????????????#+???????# #?????????? | | ????????????????????# #??????# #########+# | | ????????????????????# #??????# | | ???????????????# ???# #??????# | | ?????????????##? #### ######## | | ?????????????# ? | | ?????????????# | | ?????????????# """" | | ?????????????# "" """" | | ?????????????# """" !! """" | | ?????????????# """" ###########!= """" | | ?????????????# "" # "" # | | ?????????????# #s """" # | | ?????????? ; s """" # | | ??????????;;;; W@ "" s | | ???????+ sk l s# | | ???????+ """"% ; # # | | ???????+ % """ k#l # ######## | | ???????+ ""!Kg # # #??????? | | ???????+ ==%== ###;####### #??????? | | ???????####### !*!%= ########### #??????? | | ?????????????# h=*! #??????? | | ?????????????# h#### ########+###+#+##+#??????? | | ?????????????# * ???? #?????# ?????????? | | ?????????????# % ????+#?????# ? ?????????? | | ?????????????# ???????????# ? ????????? | | ?????????????# ????????????#??? ????????? | | ??????????????? ???????????????? * ???????? | | ????????????????????????????????? ???????? | | ???????????????????????????????? ??????? | | ???????????????????????????????? " " #?????? | | ??????????????????????????????? ""R"" #?????? | | ??????????????????????????????? """"" #?????? | | ??????????????????????????????# ? #?????? | | ??????????????????????????????# ?????? #?????? | | ??????????????????????????????????????#####??????? | | ?????????????????????????????????????????????????? | | ?????????????????????????????????????????????????? | | ?????????????????????????????????????????????????? | +----------------------------------------------------+ Best States ------------- Heat Dissipation 83 Energy Generation 45 Energy Capacity 440 Matter Stores 300 Matter Capacity 300 Sight Range 22 Terrain Scan Range 16 Terrain Scan Density 10 ECM Strength 1 Jamming Range 12 Cloak Strength 4 Armor Coverage 1050 Core Shielding 20 Utility Shielding 66 Evasion (%) 66 Recoil Reduction 4 Offensive Hacking 71 Defensive Hacking 14 Item Schematics ----------------- None Robot Schematics ------------------ None Fabricated ------------ Gravity Neutralizer | x1 | -6/Factory Enh. Nova Cannon | x2 | -5/Factory | Preloaded Nuclear Pulse Array | x1 | -5/Factory Vibroblade | x1 | -4/Armory Alien Tech Used ----------------- Core Expander Integrated Mediator LC Capacitor Transdimensional Reconstructor Core Reset Matrix Matter Drive High-powered Transdimensional Reconstructor Integrated Reactor Spacefold Activator L-Cannon Achievements -------------- Origins Challenges ------------ None Game ------ Seed FissionRemoteReconstructor Manual? 0 Play Time 03:28:18 Cumulative 139.3 hours Start 2024.11.08 @ 22:53:38 End 2024.11.10 @ 20:39:50 Sessions 45 Manual Loads 0 Difficulty Rogue Special Mode None Game No. 75 Rogue 75 Adventurer 0 Explorer 0 Win Type 2 Total 13 Types 7/1/3/1/0/0/0/1/0 Lore% 63 Gallery% 60 Achievement% 66 Wizard Run 0 Options --------- Layout 1 ASCII 0 Keyboard 0 Movement Arrows Keybinds 0 Fullscreen 1 Font 24/Tamsyn Map View 50x35 Zoom Use 0% Tactical HUD 1 Map Filters NONE Filters NONE Steam 1 RUN: dbafc248-4e86-40c8-9011-62a5b2d1021d